bitfinex/quotes_ETHUSD_20260207
["timestamp","ask_amount","ask_price","bid_price","bid_amount"]
[1770434327255,1.20621032,2074.4,2073.9,0.0011]
[1770434327454,0.001,2074.4,2073.9,0.0011]
[1770434327637,0.001,2074.4,2073.9,1.1263176]
[1770434328162,0.001,2074.4,2073.9,0.0011]
[1770434328545,0.001,2074.4,2073.9,1.1263176]
[1770434328942,0.001,2074.4,2073.9,0.0011]
[1770434331470,0.002,2074.6,2073.9,1.1263176]
[1770434332041,0.002,2074.6,2073.9,0.0011]
[1770434334271,1.16293495,2074.5,2073.9,0.0011]
[1770434335252,1.11670061,2074.5,2073.9,0.0011]
[1770434335751,1.20516775,2074.4,2073.9,0.0011]
[1770434335959,2.32186836,2074.4,2073.9,0.0011]
[1770434336351,1.11670061,2074.3,2073.4,0.0425663]
[1770434336549,1.25140209,2074.4,2073.4,0.0425663]
[1770434336550,1.11670061,2074.1,2073.4,0.0425663]
[1770434336757,1.11670061,2074.1,2073.4,1.24827391]
[1770434337070,1.11670061,2074.1,2073.4,1.85555763]
[1770434338279,1.20540019,2074.0,2073.4,1.85556081]
[1770434338482,1.20540019,2074.0,2073.4,0.0425663]
[1770434338766,1.20540019,2074.0,2073.9,0.0011]
[1770434338973,1.20540019,2074.0,2073.4,0.0425663]
[1770434340971,1.20540019,2074.0,2073.4,1.24830856]
[1770434341273,1.20619462,2074.4,2073.4,1.24830856]
[1770434341473,1.20619462,2074.4,2073.5,0.71977909]
[1770434342283,1.11670061,2074.3,2073.4,1.24830856]
[1770434342494,1.20619462,2074.4,2073.4,1.24830856]
[1770434342679,0.001,2074.4,2073.5,1.1252176]
[1770434342985,0.002,2074.6,2073.9,1.1252176]
[1770434343162,0.002,2074.6,2073.8,1.20551644]
[1770434343361,0.002,2074.6,2073.9,0.60275822]
[1770434344974,0.002,2074.6,2074.0,1.20540019]
[1770434348963,1.18250263,2074.5,2073.8,1.20551373]
[1770434349282,0.002,2074.6,2073.6,1.17256539]
[1770434349960,1.20705949,2074.6,2073.6,1.17256539]
[1770434350673,1.20705949,2074.6,2074.2,0.0011]
[1770434350870,0.001,2074.4,2074.2,0.0011]
[1770434354422,0.002,2075.0,2074.3,1.17256539]
[1770434354704,0.003,2074.9,2074.2,0.0011]
[1770434357389,1.23173697,2074.9,2074.2,0.0011]
[1770434357975,1.18550263,2074.9,2074.2,0.0011]
[1770434358306,1.23173697,2074.9,2074.2,0.0011]
[1770434360402,1.18250263,2074.7,2074.2,0.0011]
[1770434360902,0.04923434,2074.6,2074.2,0.0011]
[1770434361205,0.04623434,2074.6,2074.2,0.0011]
[1770434361393,1.18250263,2074.7,2074.2,0.0011]
[1770434361586,0.003,2074.6,2074.2,0.0011]
[1770434363207,1.18250263,2074.4,2074.2,0.0011]
[1770434363412,1.18250263,2074.4,2074.0,0.0011]
[1770434363609,0.003,2074.3,2074.0,0.0011]
[1770434363995,0.003,2074.2,2074.0,0.0011]
[1770434365780,1.20518729,2074.4,2074.0,0.0011]
[1770434366110,0.003,2074.3,2074.0,0.0011]
[1770434366313,1.18550263,2074.3,2074.0,0.0011]
[1770434366500,1.22873697,2074.2,2073.4,0.0425663]
[1770434366702,1.22873697,2073.9,2073.4,0.0425663]
[1770434367009,0.04923434,2074.2,2073.2,1.20585843]
[1770434367010,0.003,2074.1,2073.2,1.20585843]
[1770434367188,2.3908447,2074.1,2073.1,0.001]
[1770434367385,1.03794657,2074.0,2073.1,0.001]
[1770434367623,1.18250263,2073.8,2073.1,0.001]
[1770434367802,2.2204492,2073.7,2073.1,0.001]
[1770434368002,1.03794657,2073.6,2073.1,0.001]
[1770434368185,1.04094657,2073.6,2073.1,0.001]
[1770434368379,1.03794657,2073.5,2073.1,0.001]
[1770434368583,1.03794657,2073.4,2073.1,0.001]
[1770434368794,0.003,2073.6,2073.1,0.001]
[1770434368990,1.03757453,2073.5,2073.1,0.001]
[1770434369186,1.03757453,2073.4,2073.1,0.001]
[1770434369386,1.20572034,2073.5,2073.1,0.001]
[1770434369604,1.03710002,2073.4,2073.1,0.001]
[1770434369795,0.003,2073.4,2073.1,0.001]
[1770434370109,1.03713133,2073.3,2073.1,0.001]
[1770434370284,0.003,2073.3,2072.9,0.001]
[1770434370484,1.03940072,2073.2,2072.9,0.001]
[1770434370708,0.003,2073.4,2072.9,0.001]
[1770434370885,1.03640034,2073.3,2072.9,0.001]
[1770434371206,0.003,2073.4,2072.9,0.001]
[1770434371407,1.20586532,2073.2,2072.9,0.001]
[1770434371811,0.003,2073.1,2072.9,0.001]
[1770434371992,0.003,2073.1,2072.5,0.001]
[1770434372383,1.20586532,2073.2,2072.5,0.001]
[1770434372585,0.003,2073.1,2072.5,0.001]
[1770434372913,0.003,2073.5,2072.5,1.17356539]
[1770434373113,1.20562768,2073.7,2072.5,1.17356539]
[1770434373286,0.003,2073.6,2072.5,1.17356539]
[1770434373610,0.003,2073.6,2072.7,1.17256539]
[1770434373815,1.20545831,2073.9,2072.7,1.17256539]
[1770434374111,1.03754599,2073.8,2072.7,1.17256539]
[1770434374313,1.20544466,2074.0,2072.7,1.17256539]
[1770434374519,1.03732397,2073.9,2072.7,1.17256539]
[1770434374696,1.03432397,2073.8,2072.7,1.17256539]
[1770434374897,1.03432397,2073.8,2072.9,0.0011]
[1770434375287,0.003,2073.7,2072.9,1.17366539]
[1770434375614,0.003,2073.9,2073.0,2.37854705]
[1770434375817,0.003,2074.1,2073.2,1.1131485]
[1770434377815,0.003,2074.1,2073.3,2.31895566]
[1770434378123,1.20620419,2074.4,2073.3,2.31895566]
[1770434378124,0.001,2074.4,2073.4,1.1131485]
[1770434378326,0.003,2074.3,2073.4,1.1131485]
[1770434378825,0.003,2074.2,2073.4,1.1131485]
[1770434379192,0.003,2074.1,2073.4,1.1131485]
[1770434379394,0.003,2074.3,2073.4,1.1131485]
[1770434379715,0.003,2074.3,2073.5,1.20569086]
[1770434379922,0.003,2074.2,2073.6,0.71416028]
[1770434380298,0.003,2074.1,2073.6,0.71416028]
[1770434380627,0.003,2074.3,2073.6,0.71416028]
[1770434381002,0.003,2074.2,2073.4,1.20571087]
[1770434381283,0.003,2074.2,2073.3,1.20578176]
[1770434381284,1.09185023,2074.2,2073.3,1.20578176]
[1770434381538,0.003,2074.1,2073.4,1.20574425]
[1770434381709,1.20822585,2074.3,2073.3,4.8230102]
[1770434381919,1.03445084,2074.2,2073.3,4.8230102]
[1770434382119,0.003,2074.1,2073.3,6.09161086]
[1770434382950,0.003,2074.1,2073.3,2.47440782]
[1770434383740,0.003,2074.1,2073.3,1.20580716]
[1770434383908,1.09185023,2074.1,2073.2,1.20586532]
[1770434384647,0.003,2074.1,2073.2,1.20586532]
[1770434385130,1.03538494,2074.0,2073.2,1.20586532]
[1770434385318,0.003,2074.1,2073.2,1.20586532]
[1770434385638,1.03538494,2074.0,2073.2,1.80881922]
[1770434385813,0.003,2073.9,2073.2,1.80881922]
[1770434387338,0.005,2073.9,2073.2,1.80881922]
[1770434389640,0.005,2073.9,2073.2,1.20586532]
[1770434390046,0.005,2073.9,2073.1,0.001]
[1770434391440,0.002,2073.9,2073.1,0.001]
[1770434395015,1.03765406,2073.8,2073.1,0.001]
[1770434395215,0.003,2073.8,2073.1,0.001]
[1770434395627,0.003,2073.8,2073.1,0.71551371]
[1770434397056,0.003,2073.8,2073.2,1.20586532]
[1770434397561,0.002,2073.9,2073.2,1.20586532]
[1770434397859,0.003,2073.7,2073.3,1.1131485]
[1770434398060,0.003,2073.7,2073.2,1.20586532]
[1770434399066,0.003,2073.6,2073.1,0.001]
[1770434399223,2.24675627,2073.6,2073.1,0.001]
[1770434399419,2.29753401,2073.6,2073.1,0.001]
[1770434399976,1.03827348,2073.5,2073.1,0.001]
[1770434400253,1.03827348,2073.4,2072.9,0.0011]
[1770434400456,1.09085023,2073.4,2072.9,0.0011]
[1770434400870,1.03866268,2073.3,2072.9,0.0011]
[1770434401069,1.0387048,2073.2,2072.9,0.0011]
[1770434401285,0.0009,2073.2,2072.6,0.0011]
[1770434401451,0.0009,2073.1,2072.6,1.1142485]
[1770434401781,1.20653271,2073.6,2072.6,1.1142485]
[1770434401980,1.04005331,2073.5,2072.6,1.1142485]
[1770434402280,0.002,2073.7,2072.8,1.1131485]
[1770434403480,0.002,2073.7,2072.9,1.20603984]
[1770434405893,0.002,2073.7,2073.0,1.10246448]
[1770434408253,0.002,2073.9,2073.2,1.10871441]
[1770434410191,0.002,2073.9,2072.8,4.82415939]
[1770434410192,0.93561371,2072.6,2072.3,1.20734061]
[1770434410386,2.41067134,2073.1,2072.3,1.20734476]
[1770434411482,2.41067134,2073.1,2072.3,0.001]
[1770434411693,1.97387393,2073.0,2072.3,0.001]
[1770434412066,1.97387393,2073.0,2072.3,1.20738861]
[1770434412473,1.20603984,2072.9,2072.3,1.20738861]
[1770434413101,1.20474785,2073.3,2072.3,1.20738861]
[1770434413398,2.41056711,2073.3,2072.3,1.20738861]
[1770434413563,2.41056711,2073.3,2072.4,1.23554925]
[1770434414166,1.03811461,2073.2,2072.4,1.23554925]
[1770434414399,1.03811461,2073.1,2072.5,1.20627261]
[1770434414568,1.03811461,2073.0,2072.5,1.20627261]
[1770434414767,1.20773962,2073.5,2072.5,1.20627261]
[1770434415069,1.03767056,2073.4,2072.6,0.72669123]
[1770434415270,1.93145425,2073.5,2072.6,0.72669123]
[1770434415271,1.03767056,2073.3,2072.6,0.72669123]
[1770434415580,1.03767056,2073.2,2072.6,0.72669123]
[1770434415757,1.9314271,2073.5,2072.6,0.72669123]
[1770434415965,1.0374141,2073.4,2072.6,0.72669123]
[1770434416163,1.0374141,2073.3,2072.6,0.72669123]
[1770434416370,1.0374141,2073.2,2072.6,0.72669123]
[1770434416574,1.20770184,2073.5,2072.7,1.20615622]
[1770434416878,1.0372632,2073.4,2072.8,0.67575591]
[1770434417078,1.0372632,2073.3,2072.8,0.67575591]
[1770434417392,1.0372632,2073.2,2072.8,0.67575591]
[1770434417700,1.93140436,2073.5,2072.8,0.67575591]
[1770434417903,1.03723533,2073.4,2072.8,0.67575591]
[1770434418104,1.03723533,2073.3,2072.8,0.67575591]
[1770434418399,1.03723533,2073.2,2072.8,0.67575591]
[1770434418704,1.20576012,2073.4,2072.8,0.67575591]
[1770434418877,1.63273197,2073.3,2072.6,5.55153592]
[1770434419072,1.03727625,2073.2,2072.6,0.72669123]
[1770434419290,1.03742463,2073.1,2072.6,0.72669123]
[1770434419594,1.20474785,2073.3,2072.6,0.72669123]
[1770434419774,1.20474785,2073.1,2072.3,0.001]
[1770434419975,1.20474785,2072.9,2072.3,0.001]
[1770434420175,1.03741832,2072.8,2072.3,0.001]
[1770434421396,2.24352619,2072.8,2072.3,0.001]
[1770434421695,1.20606959,2072.9,2072.3,0.001]
[1770434421899,1.0371603,2072.8,2072.3,0.001]
[1770434422073,1.0371603,2072.7,2072.3,0.001]
[1770434422274,1.80908002,2072.9,2072.3,0.001]
[1770434422472,2.24329827,2072.8,2072.3,0.001]
[1770434422694,1.03717058,2072.7,2072.3,0.001]
[1770434424391,1.03717058,2072.7,2072.5,0.001]
[1770434424594,0.002,2072.6,2072.5,0.001]
[1770434425098,1.03999172,2072.6,2072.5,0.001]
[1770434427471,2.24620613,2072.6,2072.5,0.001]
[1770434427672,1.03999172,2072.6,2072.5,0.001]
[1770434428098,0.002,2072.8,2072.5,0.001]
[1770434428300,1.20809953,2072.8,2072.5,0.001]
[1770434428616,0.002,2072.8,2072.5,0.001]
[1770434428783,1.20814037,2072.8,2072.5,0.001]
[1770434428984,0.002,2072.8,2072.5,0.001]
[1770434430803,1.20674785,2072.8,2072.5,0.001]
[1770434431204,0.002,2072.8,2072.5,0.001]
[1770434435915,0.002,2072.8,2072.3,0.001]
[1770434436210,0.002,2072.8,2072.3,1.12579999]
[1770434437531,0.002,2072.8,2072.5,0.001]
[1770434437811,0.002,2072.6,2072.5,0.001]
[1770434439003,1.2059865,2073.0,2072.5,0.001]
[1770434439313,9.46866431,2073.4,2072.5,0.001]
[1770434439503,1.209859,2073.3,2072.5,0.001]
[1770434439881,0.004,2073.2,2072.5,0.001]
[1770434440082,1.04057394,2073.1,2072.5,0.001]
[1770434440282,1.04057394,2073.0,2072.5,0.72308598]
[1770434440516,1.04057394,2072.9,2072.5,0.72308598]
[1770434440820,1.04057394,2072.8,2072.5,0.72308598]
[1770434441017,0.004,2073.1,2072.5,0.72308598]
[1770434441319,1.04058485,2073.0,2072.5,0.72308598]
[1770434441521,1.04058485,2072.9,2072.5,0.72308598]
[1770434441824,1.04058485,2072.8,2072.5,0.72308598]
[1770434442002,0.004,2073.1,2072.5,0.72308598]
[1770434442202,1.04054974,2073.0,2072.6,1.20621441]
[1770434442401,1.04054974,2072.9,2072.7,0.67542301]
[1770434442625,1.04054974,2072.8,2072.7,0.67542301]
[1770434442819,1.04054974,2072.8,2072.5,0.72308598]
[1770434443033,1.17181085,2073.2,2072.5,1.20726985]
[1770434443034,1.04054974,2072.7,2072.5,1.20726985]
[1770434443322,0.004,2073.0,2072.5,1.20726985]
[1770434443509,0.004,2073.2,2072.5,1.20726985]
[1770434444324,0.002,2073.5,2072.6,1.1872057]
[1770434444523,0.002,2073.9,2072.8,1.1872057]
[1770434444740,0.002,2073.9,2073.0,1.1872057]
[1770434446202,0.002,2073.9,2073.2,1.1872057]
[1770434446704,0.002,2073.9,2073.1,2.39312919]
[1770434447428,0.002,2073.9,2073.2,1.1872057]
[1770434448130,1.17381085,2073.9,2073.0,1.2059726]
[1770434448424,1.20551644,2073.8,2073.1,0.29595668]
[1770434449323,5.99587662,2073.9,2073.1,1.48316238]
[1770434449324,0.002,2073.9,2073.1,1.48316238]
[1770434449631,1.20734884,2074.1,2073.1,0.29595668]
[1770434449924,2.37915969,2074.1,2073.1,0.29595668]
[1770434450120,0.002,2073.5,2073.1,0.29595668]
[1770434450290,0.002,2073.5,2073.2,1.20586532]
[1770434450493,0.002,2073.7,2073.2,1.20586532]
[1770434453895,0.002,2073.7,2073.1,1.50183443]
[1770434454096,1.17381085,2073.7,2073.0,1.20597862]
[1770434454496,2.3794415,2073.7,2072.7,0.001]
[1770434455232,2.3794415,2073.7,2072.7,1.1882057]
[1770434457221,2.3794415,2073.7,2072.8,1.20609803]
[1770434457626,1.17181085,2073.6,2072.8,1.20609803]
[1770434457927,1.17181085,2073.6,2072.8,1.80924704]
[1770434459125,1.20569086,2073.5,2072.7,0.001]
[1770434459346,1.17181085,2073.4,2072.7,0.001]
[1770434459505,1.21804519,2073.4,2072.5,0.001]
[1770434459695,1.17181085,2073.2,2072.5,0.001]
[1770434461222,1.17181085,2073.0,2072.5,0.001]
[1770434463315,1.20590736,2073.2,2072.5,0.001]
[1770434463519,1.17181085,2073.1,2072.5,0.001]
[1770434463833,1.17181085,2073.1,2072.3,0.001]
[1770434465332,1.17181085,2072.9,2072.3,0.001]
[1770434467819,2.35025629,2072.8,2072.3,0.001]
[1770434468019,1.14415826,2072.6,2072.3,0.001]
[1770434468232,1.14415826,2072.6,2072.1,0.001]
[1770434469239,1.14415826,2072.6,2071.8,0.0011]
[1770434469840,1.20627261,2072.5,2071.8,0.0011]
[1770434470226,1.12353448,2072.4,2071.8,0.0011]
[1770434471728,1.20638903,2072.3,2071.8,0.0011]
[1770434471939,0.6016934,2072.2,2071.8,0.0011]
[1770434472946,0.6016934,2072.2,2071.6,0.001]
[1770434472947,1.12353448,2071.9,2071.6,0.001]
[1770434473151,1.12353448,2071.9,2071.1,0.001]
[1770434473342,1.12353448,2071.7,2071.1,0.001]
[1770434473948,1.20679667,2071.6,2071.1,0.001]
[1770434474151,1.92426151,2071.6,2071.1,0.001]
[1770434474446,3.04779599,2071.6,2071.1,0.001]
[1770434475442,1.20650547,2072.1,2071.1,1.08964551]
[1770434475945,1.20634048,2072.4,2071.3,1.08864551]
[1770434476825,2.32987496,2072.4,2071.3,1.08864551]
[1770434477142,1.20634048,2072.4,2071.3,1.08864551]
[1770434477850,4.82490539,2072.6,2071.3,1.08864551]
[1770434478051,1.20621441,2072.6,2071.5,1.08864551]
[1770434478546,0.002,2072.7,2071.5,1.08864551]
[1770434480058,0.002,2072.7,2071.7,1.08864551]
[1770434482148,0.002,2072.7,2071.9,1.08864551]
[1770434483752,0.002,2072.7,2071.9,1.13487985]
[1770434484053,0.002,2072.7,2072.1,1.08864551]
[1770434484254,0.002,2072.7,2072.3,1.08864551]
[1770434484654,0.002,2072.7,2072.2,1.20644725]
[1770434486324,0.002,2072.7,2072.1,4.82578901]
[1770434486527,0.002,2072.5,2072.1,4.82578901]
[1770434486753,0.002,2072.5,2072.2,1.24843399]
[1770434488459,1.12553448,2072.5,2071.9,4.82646447]
[1770434488648,1.12553448,2072.5,2072.1,1.20650268]
[1770434488649,0.002,2072.5,2072.1,1.20650268]
[1770434488840,0.002,2072.5,2072.0,1.2065288]
[1770434489663,0.002,2072.5,2072.0,1.20653087]
[1770434489830,0.002,2072.5,2071.9,1.20661997]
[1770434490032,0.002,2072.5,2071.9,1.8099661]
[1770434490527,1.20827261,2072.5,2071.9,1.8099661]
[1770434492064,2.33180709,2072.5,2071.9,1.8099661]
[1770434494538,2.33181101,2072.5,2071.9,1.8099661]
[1770434495563,1.20827653,2072.5,2071.7,1.20668592]
[1770434495769,1.16647288,2072.4,2071.7,1.20668592]
[1770434495946,1.16647288,2072.4,2071.7,1.20669174]
[1770434496142,1.16647288,2072.4,2071.6,1.20776027]
[1770434496665,1.16647288,2072.4,2071.7,1.20673076]
[1770434497474,2.37286191,2072.3,2071.6,0.001]
[1770434497638,3.09289723,2072.3,2071.6,0.001]
[1770434498143,0.72003532,2072.3,2071.6,0.001]
[1770434498864,0.002,2072.5,2071.6,1.13931197]
[1770434499069,1.20827753,2072.5,2071.6,1.13931197]
[1770434499870,0.002,2072.5,2071.7,1.20673842]
[1770434500376,1.16847288,2072.5,2071.6,1.20775714]
[1770434500559,1.16847288,2072.5,2071.6,0.001]
[1770434500744,1.16647288,2072.3,2071.6,0.001]
[1770434501270,1.16647288,2072.3,2071.6,1.20778568]
[1770434502772,1.20644725,2072.2,2071.6,0.001]
[1770434503641,1.16647288,2072.1,2071.6,0.001]
[1770434504577,1.16647288,2072.1,2071.4,0.001]
[1770434504578,1.16647288,2072.1,2071.1,0.001]
[1770434504886,1.16647288,2071.7,2071.1,0.001]
[1770434506963,1.16647288,2071.5,2071.1,0.001]
[1770434509187,1.20691319,2071.4,2071.1,0.001]
[1770434510089,1.20691319,2071.4,2071.3,0.001]
[1770434511449,2.3732113,2071.7,2071.3,0.001]
[1770434511649,0.71999614,2071.6,2071.3,0.001]
[1770434512685,1.88646902,2071.6,2071.3,0.001]
[1770434513266,1.20685493,2071.5,2071.3,0.001]
[1770434514592,1.92683214,2071.6,2071.3,0.001]
[1770434515078,1.20678243,2071.7,2071.3,0.001]
[1770434515266,4.82803875,2072.1,2071.3,0.001]
[1770434515267,2.37332781,2071.5,2071.3,0.001]
[1770434515455,1.16647288,2071.4,2071.1,0.001]
[1770434516875,1.20685493,2071.5,2071.1,0.001]
[1770434517077,1.92692969,2071.5,2071.1,0.001]
[1770434520272,1.16647288,2071.4,2070.9,0.001]
[1770434520485,1.20686532,2071.5,2071.0,0.002]
[1770434521065,0.2355703,2072.1,2071.1,1.13831197]
[1770434521066,1.2065637,2072.0,2071.1,1.13831197]
[1770434522468,1.16647288,2071.6,2070.9,0.001]
[1770434523497,1.16647288,2071.6,2071.3,0.001]
[1770434523696,1.16647288,2071.6,2070.9,0.001]
[1770434523863,1.16847288,2071.4,2070.9,0.001]
[1770434524067,1.16847288,2071.4,2071.0,0.001]
[1770434524570,1.20697146,2071.3,2071.0,0.001]
[1770434524766,0.72033063,2071.2,2070.9,0.003]
[1770434524966,1.16647288,2071.1,2070.5,1.20843233]
[1770434525195,0.72033063,2071.2,2070.6,1.20736151]
[1770434527398,1.20708802,2071.1,2070.5,0.001]
[1770434527705,1.80591563,2071.1,2070.5,1.20843774]
[1770434528006,1.80591563,2071.1,2070.5,1.20843731]
[1770434529280,1.80591563,2071.1,2070.5,0.001]
[1770434529597,1.20697146,2071.3,2070.5,1.2083955]
[1770434529805,1.20697146,2071.3,2070.5,0.001]
[1770434529966,2.33983894,2071.3,2070.5,0.001]
[1770434533809,1.20893033,2071.4,2070.5,1.16741363]
[1770434534777,2.34179781,2071.4,2070.5,0.001]
[1770434535120,1.13286748,2071.2,2070.5,0.001]
[1770434535880,2.33993558,2071.2,2070.5,0.001]
[1770434536094,2.33993558,2071.2,2070.7,0.001]
[1770434536296,0.002,2071.1,2070.7,0.001]
[1770434537615,1.041816,2071.0,2070.7,0.001]
[1770434537812,1.041816,2070.9,2070.7,0.001]
[1770434538108,0.002,2071.1,2070.7,0.001]
[1770434538410,1.04184275,2071.0,2070.7,0.001]
[1770434538618,1.04184275,2070.9,2070.7,0.001]
[1770434538928,0.002,2071.1,2070.7,0.001]
[1770434539133,1.04182523,2071.0,2070.7,0.001]
[1770434539333,1.04182523,2070.9,2070.7,0.001]
[1770434539528,0.002,2071.1,2070.7,0.001]
[1770434539829,1.04183894,2071.0,2070.7,0.001]
[1770434540134,1.04183894,2070.9,2070.7,0.001]
[1770434540329,0.002,2071.1,2070.7,1.16741363]
[1770434540541,1.04185771,2071.0,2070.7,1.16741363]
[1770434540697,1.04185771,2070.9,2070.7,1.16741363]
[1770434540895,0.002,2071.1,2070.7,1.16741363]
[1770434541099,1.04185741,2071.0,2070.7,1.16741363]
[1770434541333,1.04185741,2070.9,2070.7,1.16741363]
[1770434541500,0.002,2071.1,2070.7,1.16741363]
[1770434541702,1.04188465,2071.0,2070.7,1.16741363]
[1770434541938,1.04188465,2070.9,2070.7,1.16741363]
[1770434542095,0.002,2071.1,2070.7,2.37467729]
[1770434542298,1.04191968,2071.0,2070.7,3.09518211]
[1770434542510,1.04191968,2070.9,2070.7,3.09518211]
[1770434542730,0.002,2071.1,2070.7,3.09518211]
[1770434542933,1.04191607,2071.0,2070.7,3.09518211]
[1770434543095,0.002,2071.1,2070.7,3.09518211]
[1770434543295,0.002,2071.1,2070.8,0.79245531]
[1770434543721,0.002,2071.1,2070.7,0.001]
[1770434546510,1.2071463,2071.0,2070.7,0.001]
[1770434547435,2.34200261,2071.1,2070.7,0.001]
[1770434547654,1.20913513,2071.1,2070.7,0.001]
[1770434548510,0.002,2071.1,2070.7,0.001]
[1770434548722,0.71921547,2071.1,2070.7,0.001]
[1770434549356,0.002,2071.1,2070.7,1.16741363]
[1770434549940,0.002,2071.1,2070.9,0.001]
[1770434551337,0.002,2071.1,2070.7,0.001]
[1770434555361,1.13486748,2071.1,2070.7,0.001]
[1770434555650,0.002,2071.1,2070.7,0.001]
[1770434555852,0.002,2071.1,2070.8,0.04623434]
[1770434556053,0.002,2071.1,2070.7,0.001]
[1770434556351,0.002,2071.1,2070.7,0.2437324]
[1770434557028,0.002,2071.1,2070.7,1.45099828]
[1770434557955,0.002,2071.1,2070.8,8.91320023]
[1770434558145,0.002,2071.1,2070.8,10.08486081]
[1770434558659,0.002,2071.4,2071.0,8.91320023]
[1770434558864,0.002,2071.6,2071.3,1.20697146]
[1770434560149,0.002,2072.1,2071.3,1.20697146]
[1770434560348,0.002,2072.1,2071.3,2.37863204]
[1770434560944,0.002,2072.1,2071.5,1.17166058]
[1770434561158,0.002,2072.1,2071.6,8.91320023]
[1770434561339,0.002,2072.1,2071.7,1.00848608]
[1770434561835,0.002,2072.1,2071.5,1.17166058]
[1770434562950,0.002,2072.1,2071.6,1.20679667]
[1770434563951,0.002,2071.9,2071.6,1.20679667]
[1770434564258,0.002,2071.9,2071.7,1.17166058]
[1770434565043,0.002,2071.9,2071.6,1.20675002]
[1770434565242,1.17598897,2071.9,2071.4,1.20687798]
[1770434565451,1.17598897,2071.9,2071.3,1.20696484]
[1770434565961,0.002,2071.9,2071.5,1.20685057]
[1770434566168,0.002,2071.9,2071.7,1.20671489]
[1770434567039,0.002,2071.9,2071.6,4.82702567]
[1770434568067,0.002,2071.9,2071.6,1.20679667]
[1770434568550,0.002,2071.9,2071.4,1.20689457]
[1770434568752,1.17598897,2071.9,2071.4,1.20689457]
[1770434568941,0.002,2071.9,2071.2,1.20702974]
[1770434569273,0.002,2071.9,2071.3,0.82155103]
[1770434571445,1.17598897,2071.9,2071.4,1.20691319]
[1770434571867,0.002,2071.9,2071.4,1.20691319]
[1770434574841,1.17398897,2071.8,2071.1,1.20708451]
[1770434575165,1.17398897,2071.8,2071.0,1.20710377]
[1770434575334,1.17398897,2071.8,2071.1,1.20708132]
[1770434575537,1.17398897,2071.6,2070.9,0.001]
[1770434576066,0.7207651,2071.6,2070.9,0.62912241]
[1770434576482,2.38272739,2071.7,2070.9,0.62912241]
[1770434576856,2.38272739,2071.7,2071.4,0.001]
[1770434577257,2.38272739,2071.7,2070.9,0.62912241]
[1770434577498,2.38272739,2071.7,2071.0,1.2071463]
[1770434578681,1.17398897,2071.6,2070.9,0.62912241]
[1770434578879,1.17398897,2071.6,2070.9,0.001]
[1770434579255,1.17398897,2071.6,2070.9,1.20819872]
[1770434579862,1.17398897,2071.5,2070.9,0.001]
[1770434580063,1.89498219,2071.5,2070.9,0.001]
[1770434581595,1.17398897,2071.1,2070.7,0.001]
[1770434582165,4.82792656,2071.3,2070.7,0.001]
[1770434582166,1.17398897,2071.3,2070.7,0.001]
[1770434583480,1.17398897,2071.6,2070.7,0.001]
[1770434583682,0.40510178,2072.1,2071.2,1.17166058]
[1770434583865,0.002,2072.1,2071.5,1.20685493]
[1770434584271,0.002,2072.1,2071.3,2.2153806]
[1770434584465,0.002,2072.1,2071.4,1.20690712]
[1770434586000,1.20850547,2072.1,2071.3,2.21536169]
[1770434587190,1.17712853,2072.0,2071.3,2.21536169]
[1770434587716,0.002,2072.1,2071.3,3.33244845]
[1770434587896,0.002,2072.1,2071.4,0.81604191]
[1770434588094,0.002,2072.1,2071.5,1.20685493]
[1770434588402,0.002,2072.1,2071.6,0.001]
[1770434588788,0.002,2071.7,2071.6,0.001]
[1770434592976,0.002,2072.1,2071.6,0.001]
[1770434593305,0.002,2072.1,2071.6,0.79533647]
[1770434593502,0.002,2072.1,2071.7,1.20673842]
[1770434594077,0.002,2072.1,2071.6,2.00209787]
[1770434596906,0.002,2072.1,2071.6,3.09300322]
[1770434597410,0.002,2072.1,2071.6,2.00209787]
[1770434597610,0.002,2072.1,2071.7,0.68294048]
[1770434597790,0.002,2072.1,2071.7,1.88962069]
[1770434600390,0.002,2072.1,2071.7,2.98052604]
[1770434600604,0.002,2072.1,2071.7,1.88962069]
[1770434602285,0.002,2071.9,2071.7,1.88962069]
[1770434602486,0.002,2072.1,2071.8,0.75120036]
[1770434605418,0.002,2072.1,2071.9,1.20662194]
[1770434605598,0.002,2072.1,2071.8,1.95783566]
[1770434607800,0.002,2072.7,2072.0,1.09090535]
[1770434609094,0.002,2072.7,2072.1,8.90428814]
[1770434609411,0.002,2072.7,2072.2,0.99951935]
[1770434609918,0.002,2072.7,2072.3,1.20638903]
[1770434612225,0.002,2072.8,2072.4,1.09090535]
[1770434612728,0.002,2072.8,2072.3,10.11067717]
[1770434613522,0.002,2072.8,2072.3,1.20638903]
[1770434613727,0.002,2072.8,2072.4,0.81223699]
[1770434614620,0.002,2072.8,2072.5,1.20627261]
[1770434615738,0.002,2073.0,2072.6,1.07627064]
[1770434616107,0.002,2073.2,2072.6,1.07627064]
[1770434616108,1.09771252,2073.4,2072.6,1.07627064]
[1770434616509,1.09771252,2073.4,2072.5,1.20627261]
[1770434616733,1.09771252,2073.3,2072.7,1.20615622]
[1770434617207,1.09771252,2073.3,2072.4,0.81223699]
[1770434617410,1.09771252,2073.3,2072.6,1.20621369]
[1770434618928,1.09771252,2073.2,2072.2,5.90204282]
[1770434619937,1.20576906,2073.4,2072.3,1.07627064]
[1770434620246,1.09971252,2073.5,2072.3,1.07627064]
[1770434621031,1.09971252,2073.5,2072.4,1.20633082]
[1770434621235,1.09971252,2073.5,2072.6,1.07627064]
[1770434621539,0.002,2073.5,2072.6,1.07627064]
[1770434622548,2.30540354,2073.5,2072.6,1.07627064]
[1770434622842,1.09971252,2073.5,2072.6,1.07627064]
[1770434623240,1.09971252,2073.5,2072.7,1.20615622]
[1770434623439,1.09971252,2073.5,2072.8,0.71070517]
[1770434624433,1.09971252,2073.5,2072.7,1.20615622]